bitfinex/quotes_ETHUSD_20240701
["timestamp","ask_amount","ask_price","bid_price","bid_amount"]
[1719878069252,10.38234,3445.5,3444.7,2.903]
[1719878069434,0.19623706,3444.8,3444.7,2.903]
[1719878069758,2.90243,3445.4,3444.7,3.795936]
[1719878069957,0.19623706,3444.8,3444.7,2.903]
[1719878070435,2.90243,3445.4,3444.7,2.903]
[1719878070636,0.5,3445.2,3444.7,2.903]
[1719878071065,0.19623706,3445.1,3444.7,2.903]
[1719878071669,2.90243,3445.4,3444.7,2.903]
[1719878071842,0.19623706,3445.0,3444.7,2.903]
[1719878072045,2.90243,3445.4,3444.8,0.736]
[1719878072232,0.5,3445.2,3444.8,0.736]
[1719878072674,0.19623706,3445.1,3444.8,0.736]
[1719878073333,0.5,3445.2,3444.8,0.736]
[1719878073535,0.19623706,3445.0,3444.8,0.736]
[1719878073767,2.90243,3445.4,3444.8,1.72461568]
[1719878073970,0.19623706,3444.9,3444.8,1.72461568]
[1719878074177,2.90243,3445.4,3444.8,1.72461568]
[1719878074473,0.5,3445.2,3444.8,1.72461568]
[1719878074657,0.5,3445.2,3444.8,4.62752568]
[1719878074862,0.5,3445.2,3444.9,0.75885809]
[1719878075072,0.19623706,3445.1,3444.9,0.75885809]
[1719878075453,0.5,3445.3,3444.9,0.75885809]
[1719878075650,0.19623706,3445.0,3444.9,0.75885809]
[1719878075968,2.90243,3445.4,3444.9,0.75885809]
[1719878076140,0.19623706,3445.0,3444.8,3.63891]
[1719878076484,0.19623706,3444.9,3444.8,3.63891]
[1719878076852,2.90243,3445.4,3444.8,3.63891]
[1719878077184,0.69623706,3445.3,3444.8,3.63891]
[1719878077349,0.69623706,3445.3,3445.0,0.736]
[1719878079244,0.69645073,3445.4,3445.3,0.736]
[1719878079442,0.69645073,3445.4,3445.2,2.2506]
[1719878079715,0.19645073,3445.4,3445.2,2.2506]
[1719878079890,0.19645073,3445.4,3445.3,0.736]
[1719878080108,2.90194,3446.0,3445.3,3.63845]
[1719878080324,0.19650556,3445.4,3445.3,3.63845]
[1719878080512,2.90194,3446.0,3445.3,3.63845]
[1719878080691,0.19650556,3445.4,3445.3,3.63845]
[1719878081324,2.90194,3446.0,3445.3,3.63845]
[1719878081548,0.19650556,3445.4,3445.3,3.63845]
[1719878081843,0.19650556,3445.4,3445.3,4.517614]
[1719878081997,0.5,3445.8,3445.3,4.517614]
[1719878082193,0.19650556,3445.7,3445.3,3.63845]
[1719878082721,0.5,3445.8,3445.3,3.63845]
[1719878082881,0.19650556,3445.6,3445.3,3.63845]
[1719878083082,2.9016,3446.4,3445.6,2.90218]
[1719878083297,0.5,3445.8,3445.6,2.90218]
[1719878083506,2.90166,3446.3,3445.6,2.90218]
[1719878083744,0.5,3446.1,3445.6,2.90218]
[1719878085750,0.5023526,3446.0,3445.6,2.90218]
[1719878085950,2.90166,3446.3,3445.6,2.90218]
[1719878086157,0.5,3446.1,3445.6,2.90218]
[1719878086359,0.50235442,3446.0,3445.6,2.90218]
[1719878086729,0.50235442,3446.2,3445.6,2.90218]
[1719878087039,1.00235289,3446.1,3445.6,2.90218]
[1719878087351,0.50235289,3446.0,3445.6,2.90218]
[1719878087523,2.90166,3446.3,3445.6,2.90218]
[1719878087524,0.5,3446.1,3445.6,2.90218]
[1719878087834,0.50235782,3446.0,3445.6,2.90218]
[1719878088019,2.90166,3446.3,3445.6,2.90218]
[1719878088221,0.50235447,3446.2,3445.6,2.90218]
[1719878088445,1.00235447,3446.1,3445.6,2.90218]
[1719878088719,0.50235759,3446.0,3445.6,2.90218]
[1719878088919,0.50235759,3445.9,3445.6,2.90218]
[1719878089120,2.90174,3446.2,3445.6,2.90218]
[1719878089355,1.00235687,3446.1,3445.5,0.736]
[1719878089553,1.00235687,3446.1,3445.2,3.63853]
[1719878089554,0.50235687,3446.0,3445.2,3.63853]
[1719878089762,3.40432687,3446.0,3445.3,2.9025]
[1719878089921,0.50235687,3445.9,3445.3,2.9025]
[1719878091238,0.50237163,3445.8,3445.3,2.9025]
[1719878091453,2.90197,3446.0,3445.3,2.9025]
[1719878091652,0.50236846,3445.9,3445.3,3.8573039]
[1719878091830,0.50236968,3445.9,3445.4,0.736]
[1719878092030,2.90197,3446.0,3445.4,0.736]
[1719878092031,0.50236968,3445.8,3445.4,0.736]
[1719878092244,2.90197,3446.0,3445.4,0.736]
[1719878092564,0.50236386,3445.9,3445.4,0.736]
[1719878092749,0.50236386,3445.8,3445.4,1.54664429]
[1719878092945,2.90197,3446.0,3445.4,1.54664429]
[1719878093165,0.50236123,3445.9,3445.4,1.54664429]
[1719878093458,0.50236123,3445.8,3445.4,1.54664429]
[1719878093664,0.50236123,3445.9,3445.4,1.54664429]
[1719878094945,2.90197,3446.0,3445.4,1.54664429]
[1719878095264,0.5023682,3445.9,3445.5,5.81185833]
[1719878095466,0.5,3446.1,3445.5,5.81185833]
[1719878095467,0.5023682,3445.8,3445.5,5.81185833]
[1719878095667,0.5,3446.1,3445.5,5.81185833]
[1719878095859,0.5023652,3446.0,3445.5,5.81185833]
[1719878096062,0.5023652,3445.9,3445.5,5.81185833]
[1719878096364,0.5023652,3445.8,3445.5,5.81185833]
[1719878096567,2.90175,3446.2,3445.6,1.02610026]
[1719878096749,0.5,3446.0,3445.5,5.30589]
[1719878096944,0.50236411,3445.9,3445.5,5.30589]
[1719878097151,0.50236411,3445.8,3445.5,5.30589]
[1719878097451,2.90175,3446.2,3445.5,5.30589]
[1719878097643,0.5,3446.0,3445.5,5.30589]
[1719878097833,0.50236415,3445.9,3445.5,6.200329]
[1719878098029,0.69908621,3445.8,3445.5,6.200329]
[1719878098234,0.19672206,3445.8,3445.5,6.200329]
[1719878098468,2.90175,3446.2,3445.5,6.200329]
[1719878098773,0.19672206,3445.7,3445.5,5.30589]
[1719878098935,2.90175,3446.2,3445.5,5.30589]
[1719878099136,0.5,3446.0,3445.5,5.30589]
[1719878099331,0.50236286,3445.9,3445.5,5.30589]
[1719878099556,0.50236286,3445.8,3445.5,5.30589]
[1719878099760,0.19672206,3445.8,3445.5,6.200329]
[1719878100160,0.5,3446.0,3445.5,6.200329]
[1719878100469,0.50236428,3445.9,3445.5,6.200329]
[1719878100673,0.50236428,3445.8,3445.5,6.200329]
[1719878100848,0.19672206,3445.9,3445.5,6.200329]
[1719878101173,2.90175,3446.2,3445.6,3.5958729]
[1719878101373,0.19672206,3445.8,3445.6,3.5958729]
[1719878101539,2.90175,3446.2,3445.6,3.5958729]
[1719878101739,0.19672206,3445.7,3445.6,3.5958729]
[1719878102041,0.5,3446.0,3445.6,3.5958729]
[1719878102234,0.69907702,3445.9,3445.6,2.90224]
[1719878102440,0.50235496,3445.8,3445.6,2.90224]
[1719878102782,0.19675382,3445.7,3445.6,2.90224]
[1719878103140,2.90175,3446.2,3445.6,2.90224]
[1719878103469,0.5,3446.0,3445.6,2.90224]
[1719878103638,0.50235284,3445.9,3445.6,2.90224]
[1719878103834,0.5,3446.0,3445.6,2.90224]
[1719878104139,0.19675382,3445.8,3445.6,2.90224]
[1719878104364,0.50236871,3445.7,3445.6,2.90224]
[1719878104553,0.69912253,3445.7,3445.6,2.90224]
[1719878107265,1.20149387,3445.7,3445.6,2.90224]
[1719878108278,0.69912385,3445.7,3445.6,2.90224]
[1719878109405,0.69912385,3445.7,3445.6,6.9509139]
[1719878109406,0.19675382,3445.7,3445.6,6.9509139]
[1719878109561,2.9015,3446.5,3445.8,2.90206]
[1719878109767,0.69913953,3446.4,3446.0,0.736]
[1719878110088,1.00230492,3446.3,3446.0,0.736]
[1719878110284,0.5,3446.3,3446.0,0.736]
[1719878110602,2.9015,3446.5,3446.0,0.736]
[1719878110603,0.69913698,3446.2,3446.0,0.736]
[1719878110803,0.50230227,3446.1,3445.8,3.63806]
[1719878111012,0.50230227,3446.0,3445.8,4.62335739]
[1719878111328,0.5,3446.3,3445.8,4.62335739]
[1719878111492,0.50230453,3446.2,3445.8,4.62335739]
[1719878111692,0.50230453,3446.1,3445.8,3.63806]
[1719878111896,0.50230453,3446.0,3445.8,3.63806]
[1719878112105,0.50230453,3446.1,3445.8,3.63806]
[1719878112286,0.19683461,3445.9,3445.8,3.63806]
[1719878112516,0.50230453,3445.9,3445.8,3.63806]
[1719878112684,0.69913914,3445.9,3445.8,4.53391429]
[1719878112884,0.69914788,3445.9,3445.8,4.53391429]
[1719878113375,0.69914787,3445.9,3445.8,4.53391429]
[1719878114588,0.19683461,3445.9,3445.8,4.53391429]
[1719878114793,2.4033,3446.5,3445.8,4.53391429]
[1719878115016,0.19683461,3445.9,3445.8,3.63806]
[1719878115181,5.3048,3446.5,3445.8,3.63806]
[1719878115516,0.5,3446.2,3445.8,3.63806]
[1719878115816,0.50230466,3446.1,3445.8,2.90206]
[1719878116120,0.50230466,3446.0,3445.8,2.90206]
[1719878116618,5.3048,3446.5,3445.8,2.90206]
[1719878116795,0.6991534,3445.9,3445.8,2.90206]
[1719878116974,0.50231879,3445.9,3445.8,2.90206]
[1719878117181,0.6991534,3445.9,3445.8,2.90206]
[1719878120383,0.69915994,3445.9,3445.8,2.90206]
[1719878121517,2.57904094,3446.4,3445.8,2.90206]
[1719878122118,0.5,3446.2,3445.8,2.90206]
[1719878122616,0.1904293,3446.1,3445.8,2.90206]
[1719878123284,2.57904094,3446.4,3445.8,2.90206]
[1719878123485,0.1904293,3446.0,3445.8,2.90206]
[1719878123687,2.57904094,3446.4,3445.8,2.90206]
[1719878124027,0.56639469,3446.3,3445.8,2.90206]
[1719878124203,0.1904293,3446.3,3445.8,2.90206]
[1719878124404,0.5,3446.2,3445.8,2.90206]
[1719878124820,0.1904293,3446.1,3445.8,2.90206]
[1719878125412,2.57904094,3446.4,3445.8,2.90206]
[1719878125587,0.1904293,3446.0,3445.8,2.90206]
[1719878125786,2.57904094,3446.4,3445.8,2.90206]
[1719878126017,0.5,3446.2,3445.8,2.90206]
[1719878126598,0.1904293,3446.1,3445.8,2.90206]
[1719878127028,2.57904094,3446.4,3445.8,2.90206]
[1719878127214,0.1904293,3446.0,3445.8,2.90206]
[1719878127415,2.57904094,3446.4,3445.8,2.90206]
[1719878127723,0.1904293,3445.9,3445.8,2.90206]
[1719878127927,2.57904094,3446.4,3445.8,2.90206]
[1719878128091,0.1904293,3445.9,3445.8,2.90206]
[1719878128292,2.57904094,3446.4,3445.8,2.90206]
[1719878128490,0.1904293,3445.9,3445.8,2.90206]
[1719878128698,2.57904094,3446.4,3445.8,3.79211]
[1719878129025,2.57904094,3446.4,3445.8,2.90206]
[1719878129026,0.56640203,3446.3,3445.8,2.90206]
[1719878129236,0.5,3446.2,3445.8,2.90206]
[1719878129754,0.1904293,3446.1,3446.0,3.186]
[1719878130436,0.0346182,3446.6,3446.0,3.186]
[1719878130728,0.1904293,3446.1,3446.0,3.186]
[1719878131251,0.5,3446.4,3446.0,3.186]
[1719878131454,0.1904293,3446.1,3446.0,3.186]
[1719878131756,0.53691453,3446.6,3446.0,3.186]
[1719878131964,0.5,3446.4,3446.0,3.186]
[1719878132144,0.50229229,3446.3,3446.0,3.186]
[1719878132476,0.19049856,3446.2,3446.0,6.08791]
[1719878132764,0.50230434,3446.1,3446.0,6.08791]
[1719878133068,0.6928029,3446.1,3446.0,6.08791]
[1719878133359,0.69278021,3446.1,3446.0,6.08791]
[1719878135657,0.69278085,3446.1,3446.0,6.08791]
[1719878137944,0.69278085,3446.1,3445.8,2.90201]
[1719878138146,0.50228229,3446.0,3445.9,2.90198]
[1719878138458,0.69279527,3446.0,3445.9,2.90198]
[1719878138846,0.69283195,3446.0,3445.9,2.90198]
[1719878139284,0.19051298,3446.0,3445.9,2.90198]
[1719878139455,0.50231818,3446.0,3445.9,2.90198]
[1719878139655,0.69283116,3446.0,3445.9,2.90198]
[1719878140260,0.69283116,3446.0,3445.7,6.10585]
[1719878140463,0.50231818,3445.9,3445.7,6.10585]
[1719878140765,0.50231818,3445.9,3445.7,6.47525057]
[1719878140962,0.69283116,3445.8,3445.7,6.47525057]
[1719878141165,0.69283116,3445.8,3445.7,6.10585]
[1719878141498,0.69284027,3445.8,3445.7,6.10585]
[1719878142195,0.69284294,3445.8,3445.7,6.10585]
[1719878143259,0.69284294,3445.8,3445.7,5.36985]
[1719878144381,0.69284294,3445.8,3445.7,6.270667]
[1719878145318,0.19051298,3445.8,3445.7,6.270667]
[1719878145794,0.50232904,3446.2,3445.7,6.270667]
[1719878146097,0.50232904,3446.2,3445.5,2.90232]
[1719878146098,0.50232904,3446.1,3445.5,2.90232]
[1719878146257,0.50232904,3446.0,3445.6,2.90225]
[1719878146687,0.19047835,3445.9,3445.6,2.90225]
[1719878146896,0.50232904,3446.1,3445.6,2.90225]
[1719878147060,0.19047835,3445.8,3445.6,2.90225]
[1719878147271,0.50232904,3445.7,3445.6,2.90225]
[1719878147613,0.69280739,3445.7,3445.6,2.90225]
[1719878147917,0.69280739,3445.7,3445.1,3.63864]
[1719878148214,0.50232904,3445.6,3445.2,0.613334]
[1719878148422,0.19047835,3445.7,3445.2,0.613334]
[1719878148578,0.19046968,3445.5,3445.2,3.515904]
[1719878148974,2.90208,3445.8,3445.2,3.515904]
[1719878149217,0.50238216,3445.7,3445.2,3.515904]
[1719878149511,0.50238216,3445.6,3445.2,3.515904]
[1719878149691,0.50238216,3445.5,3445.2,3.515904]
[1719878149895,0.19046968,3445.5,3445.3,0.68046502]
[1719878150196,2.90208,3445.8,3445.3,0.68046502]
[1719878150399,0.19046968,3445.4,3445.3,0.68046502]
[1719878151072,2.90208,3445.8,3445.3,0.68046502]
[1719878151245,0.19046968,3445.4,3445.3,0.68046502]
[1719878151396,0.50238232,3445.7,3445.3,0.68046502]
[1719878151717,0.69285377,3445.6,3445.3,0.68046502]
[1719878152014,0.19046968,3445.6,3445.3,0.68046502]
[1719878152219,2.90208,3445.8,3445.3,0.68046502]
[1719878152380,0.19046968,3445.5,3445.3,0.68046502]
[1719878152580,2.90208,3445.8,3445.3,0.68046502]
[1719878152779,0.69284849,3445.7,3445.3,0.68046502]
[1719878153005,0.50237881,3445.6,3445.3,0.68046502]
[1719878153218,2.90208,3445.8,3445.3,0.68046502]
[1719878153516,0.69284766,3445.7,3445.3,0.68046502]
[1719878153682,0.50237798,3445.6,3445.3,0.68046502]
[1719878154125,0.19046968,3445.5,3445.3,0.68046502]
[1719878154482,2.90208,3445.8,3445.3,0.68046502]
[1719878154684,0.19046968,3445.4,3445.3,0.68046502]
[1719878154916,2.90208,3445.8,3445.3,0.68046502]
[1719878155233,0.50237922,3445.7,3445.3,0.68046502]
[1719878155416,0.50237922,3445.6,3445.3,4.31895502]
[1719878155616,0.19046968,3445.5,3445.3,4.31895502]
[1719878155813,0.5,3445.9,3445.3,3.63849]
[1719878156068,0.69284778,3445.8,3445.3,3.63849]
[1719878156230,0.5023781,3445.7,3445.3,3.63849]
[1719878156431,0.5023781,3445.6,3445.3,3.63849]
[1719878156632,0.19046968,3445.6,3445.3,3.63849]
[1719878156876,5.39538,3446.0,3445.3,4.6033994]
[1719878157015,5.39538,3446.0,3445.3,3.63849]
[1719878157016,0.19046968,3445.5,3445.3,3.63849]
[1719878157219,5.39538,3446.0,3445.3,3.63849]
[1719878157462,1.1928469,3445.9,3445.3,3.63849]
[1719878157663,0.50237722,3445.8,3445.3,3.63849]
[1719878157886,5.39538,3446.0,3445.3,3.63849]
[1719878158026,0.69284767,3445.7,3445.4,2.2996]
[1719878158224,2.90198,3446.0,3445.4,2.2996]
[1719878158451,0.19046968,3445.6,3445.4,2.2996]
[1719878158658,2.90198,3446.0,3445.4,2.2996]
[1719878158966,0.19046968,3445.5,3445.4,2.2996]
[1719878159257,0.19046968,3445.5,3445.4,3.2449994]
[1719878159462,0.5,3445.9,3445.4,3.2449994]
[1719878159614,0.19046968,3445.5,3445.4,2.2996]
[1719878159815,2.90198,3446.0,3445.4,2.2996]
[1719878160036,0.69284801,3445.9,3445.4,2.2996]
[1719878160323,0.50237833,3445.8,3445.4,2.2996]
[1719878160948,0.69284617,3445.7,3445.4,2.2996]
[1719878161150,0.19046968,3445.7,3445.4,2.2996]
[1719878161425,2.90198,3446.0,3445.4,2.2996]
[1719878161640,0.69279523,3445.9,3445.4,2.2996]
[1719878161851,0.50237748,3445.8,3445.4,5.202]
[1719878162052,0.50237748,3445.7,3445.4,5.202]
[1719878162362,0.19041775,3445.7,3445.4,5.202]
[1719878162774,2.90198,3446.0,3445.4,5.202]
[1719878162924,0.19041775,3445.6,3445.4,5.202]
[1719878163125,2.90198,3446.0,3445.4,5.202]
[1719878163324,0.19041775,3445.5,3445.4,5.202]
[1719878163555,2.90198,3446.0,3445.4,6.1473904]
[1719878163871,2.90198,3446.0,3445.4,5.202]
[1719878163872,1.00237673,3445.9,3445.4,5.202]
[1719878164072,0.50237673,3445.8,3445.4,5.202]
[1719878164421,0.19041775,3445.7,3445.4,5.202]
[1719878164628,0.50237673,3445.6,3445.4,5.202]
[1719878164929,0.19041775,3445.6,3445.4,5.202]
[1719878165329,2.90198,3446.0,3445.4,5.202]
[1719878165572,0.19041775,3445.5,3445.4,5.202]
[1719878165857,0.19041775,3445.5,3445.4,5.58201684]
[1719878166098,2.90198,3446.0,3445.4,5.58201684]
[1719878166279,0.19041775,3445.5,3445.4,5.202]
[1719878166573,2.90198,3446.0,3445.4,5.202]
[1719878166862,0.50236633,3445.9,3445.4,5.202]
[1719878167024,1.19278408,3445.9,3445.4,5.202]
[1719878167226,0.69041775,3445.9,3445.4,5.202]
[1719878167433,0.50236417,3445.8,3445.4,5.202]
[1719878167634,0.50236417,3445.7,3445.4,5.202]
[1719878167859,0.50236417,3445.6,3445.4,6.1473904]
[1719878168271,0.19041775,3445.5,3445.4,6.1473904]
[1719878168480,0.5,3446.0,3445.6,2.90221]
[1719878168785,0.50234144,3445.9,3445.6,2.90221]
[1719878168945,0.50234144,3445.8,3445.6,2.90221]
[1719878169143,0.50234144,3446.2,3445.6,2.90221]
[1719878169347,1.00234176,3446.1,3445.6,2.90221]
[1719878169654,0.50234176,3446.0,3445.6,2.90221]
[1719878169855,0.50234176,3446.2,3445.6,3.786231]
[1719878170050,0.50231714,3446.1,3445.9,2.90193]
[1719878170261,0.50231714,3446.0,3445.9,3.63793]
[1719878170462,0.50231714,3446.0,3445.9,2.90193]
[1719878172165,0.69272048,3446.0,3445.9,2.90193]
[1719878172481,0.69272048,3446.0,3445.9,3.8914671]
[1719878173181,0.69270174,3446.0,3445.9,3.8914671]
[1719878173545,0.69270174,3446.0,3445.9,0.9895371]
[1719878173737,0.69270174,3446.0,3445.9,3.8915271]
[1719878174581,0.69269604,3446.0,3445.9,3.8915271]
[1719878174749,0.69269795,3446.0,3445.9,3.8915271]
[1719878174950,0.19040334,3446.0,3445.9,4.6275271]
[1719878175262,0.5,3446.4,3446.1,2.90182]
[1719878175471,0.69278952,3446.3,3446.1,2.90182]
[1719878175672,0.1905274,3446.3,3446.1,3.90768806]
[1719878175878,0.0346182,3446.6,3446.1,3.90768806]
[1719878176048,1.19280836,3446.5,3446.1,3.90768806]
[1719878176243,0.5022639,3446.4,3446.2,2.3877]
[1719878176469,0.50226389,3446.3,3446.2,2.3877]
[1719878176748,0.69280873,3446.3,3446.2,3.38103781]
[1719878177383,0.69280873,3446.3,3446.2,2.3877]
[1719878178783,0.69281719,3446.3,3446.2,2.3877]
[1719878179253,0.19054471,3446.3,3446.2,2.3877]
[1719878179453,0.69281826,3446.3,3446.2,2.3877]
[1719878180390,0.19054471,3446.3,3446.2,2.3877]
[1719878184098,0.19054471,3446.3,3446.1,2.90181]
[1719878188302,0.19054471,3446.3,3446.1,3.787008]
[1719878189703,0.19054471,3446.3,3446.2,2.4262]
[1719878189855,0.0346182,3446.6,3446.2,2.4262]
[1719878189856,0.5346182,3446.6,3446.5,8.80298]
[1719878190059,0.5346182,3446.6,3446.5,9.53898]
[1719878190298,0.5346182,3446.6,3446.5,13.806859]
[1719878190495,0.0346182,3446.6,3446.5,13.806859]
[1719878191901,0.0346182,3446.6,3446.5,10.806859]
[1719878192115,0.0346182,3446.6,3446.5,10.070859]
[1719878192415,0.0346182,3446.6,3446.5,10.806859]
[1719878206698,0.0346182,3446.6,3446.5,13.708349]
[1719878207704,0.0346182,3446.6,3446.5,12.972349]
[1719878207919,0.0346182,3446.6,3446.5,13.708349]
[1719878209837,0.0346182,3446.6,3446.5,16.708349]
[1719878211231,0.0346182,3446.6,3446.5,17.258349]
[1719878213892,7.48,3447.8,3447.5,2.90064]
[1719878214100,2.4018,3447.9,3447.5,2.90064]
[1719878214731,0.17242893,3447.8,3447.5,2.90064]
[1719878217945,0.17242893,3447.8,3447.6,2.90056]
[1719878220344,0.50207252,3447.7,3447.6,2.90056]
[1719878220503,0.17242893,3447.8,3447.6,2.90056]
[1719878220706,0.17243763,3447.7,3447.6,2.90056]
[1719878221167,0.67450913,3447.7,3447.6,2.90056]
[1719878221313,0.17243763,3447.7,3447.6,2.90056]
[1719878221515,2.4018,3447.9,3447.6,2.90056]
[1719878221835,0.6744924,3447.8,3447.6,2.90056]
[1719878222019,0.17243183,3447.8,3447.6,2.90056]
[1719878223120,2.2676,3448.1,3447.6,2.90056]
[1719878223337,0.17243183,3447.7,3447.6,2.90056]
[1719878223524,2.2676,3448.1,3447.6,2.90056]
[1719878223838,0.17243473,3447.7,3447.6,2.90056]
[1719878224048,2.2676,3448.1,3447.6,2.90056]
[1719878224252,0.17243473,3447.7,3447.6,2.90056]
[1719878224426,2.2676,3448.1,3447.6,2.90056]
[1719878224628,0.17243473,3447.7,3447.6,2.90056]
[1719878224827,2.2676,3448.1,3447.6,2.90056]
[1719878225147,0.17243473,3447.7,3447.6,2.90056]
[1719878225350,2.2676,3448.1,3447.7,2.90047]
[1719878225577,1.0020474,3448.0,3447.7,2.90047]
[1719878225739,2.2676,3448.1,3447.7,2.90047]
[1719878226064,0.50202473,3448.0,3447.7,2.90047]
[1719878226267,2.2676,3448.1,3447.7,2.90047]
[1719878226439,0.50202014,3448.0,3447.7,2.90047]
[1719878226640,2.2676,3448.1,3447.7,2.90047]
[1719878226844,0.50201952,3448.0,3447.7,2.90047]
[1719878227156,2.2676,3448.1,3447.7,2.90047]
[1719878227457,0.50201479,3448.0,3447.7,2.90047]
[1719878227661,2.2676,3448.1,3447.7,2.90047]
[1719878227849,0.50203352,3448.0,3447.7,2.90047]
[1719878228157,2.7676,3448.1,3447.8,2.90039]
[1719878228158,2.2676,3448.1,3447.8,2.90039]
[1719878228364,0.50202753,3448.0,3447.8,2.90039]
[1719878228564,2.2676,3448.1,3447.8,2.90039]
[1719878228765,0.50202743,3448.0,3447.8,2.90039]
[1719878228929,2.2676,3448.1,3447.8,2.90039]
[1719878229130,0.50202742,3448.0,3447.8,2.90039]
[1719878229480,2.2676,3448.1,3447.8,2.90039]
[1719878229644,0.50202775,3448.0,3447.8,2.90039]
[1719878229840,2.2676,3448.1,3447.8,2.90039]
[1719878230057,0.50203403,3448.0,3447.8,2.90039]
[1719878230383,7.48,3448.3,3447.8,2.90039]
[1719878230536,1.002028,3448.2,3447.8,2.90039]
[1719878230736,0.502028,3448.1,3447.8,2.90039]
[1719878231279,0.502028,3448.2,3447.8,2.90039]
[1719878231437,1.002028,3448.2,3447.8,2.90039]
[1719878231637,0.502028,3448.1,3447.8,2.90039]
[1719878232040,0.17244923,3448.0,3447.8,2.90039]
[1719878232351,9.8802,3448.3,3447.8,2.90039]
[1719878232544,1.17448453,3448.2,3447.8,2.90039]
[1719878232751,0.5020353,3448.1,3447.8,2.90039]
[1719878233145,9.8802,3448.3,3447.8,2.90039]
[1719878233365,0.17244923,3448.0,3447.8,2.90039]
[1719878233578,9.8802,3448.3,3447.8,2.90039]
[1719878233579,0.67448486,3447.9,3447.8,2.90039]
[1719878233882,0.67448832,3447.9,3447.8,2.90039]
[1719878235082,0.67448775,3447.9,3447.8,2.90039]
[1719878235578,0.67448775,3447.9,3447.6,2.90056]
[1719878235883,0.50206778,3447.8,3447.5,2.90064]
[1719878236046,0.50206778,3447.7,3447.5,3.62541265]
[1719878236252,0.1723941,3447.7,3447.5,3.62541265]
[1719878236675,2.2662,3448.1,3447.5,3.62541265]
[1719878236873,0.17235349,3447.6,3447.5,2.90064]
[1719878237076,2.2662,3448.1,3447.5,2.90064]
[1719878237253,0.17235349,3447.6,3447.5,2.90064]
[1719878237451,2.2662,3448.1,3447.5,2.90064]
[1719878237655,0.17235349,3447.6,3447.5,2.90064]
[1719878237862,2.2662,3448.1,3447.5,3.710206]
[1719878238051,0.17235349,3447.6,3447.5,2.90064]
[1719878238252,2.2662,3448.1,3447.5,2.90064]
[1719878238576,0.17235349,3447.6,3447.5,2.90064]
[1719878238778,2.2662,3448.1,3447.5,2.90064]
[1719878238993,0.17235349,3447.6,3447.5,2.90064]
[1719878239295,0.17235349,3447.6,3447.5,3.710206]
[1719878239444,0.5,3448.0,3447.5,3.710206]
[1719878239646,0.50206339,3447.9,3447.5,2.90064]
[1719878239902,0.50206339,3447.8,3447.5,2.90064]
[1719878240241,0.50206339,3448.0,3447.5,2.90064]
[1719878240469,0.17235349,3447.7,3447.5,2.90064]
[1719878240782,0.17235349,3447.6,3447.5,3.710206]
[1719878241082,0.5,3448.0,3447.5,3.710206]
[1719878241276,0.17235349,3447.6,3447.5,2.90064]
[1719878241482,0.50206577,3447.6,3447.5,2.90064]
[1719878241690,0.67441926,3447.6,3447.5,2.90064]
[1719878241859,0.17235349,3447.6,3447.5,2.90064]
[1719878242181,2.2662,3448.1,3447.5,2.90064]
[1719878242501,1.17441772,3448.0,3447.5,2.90064]
[1719878242641,0.50206423,3447.9,3447.5,2.90064]
[1719878242845,0.17235349,3448.0,3447.5,2.90064]
[1719878243076,0.67440783,3447.8,3447.5,2.90064]
[1719878243282,2.2662,3448.1,3447.5,2.90064]
[1719878243464,0.6744059,3447.7,3447.5,2.90064]
[1719878243777,0.6744059,3447.6,3447.5,2.90064]
[1719878243982,0.6744059,3447.6,3447.5,2.71294]
[1719878244979,0.50206402,3447.6,3447.5,2.71294]
[1719878245185,0.50206402,3448.0,3447.5,2.71294]
[1719878245479,0.17233318,3447.9,3447.5,2.71294]
[1719878245654,0.50206402,3447.8,3447.5,2.71294]
[1719878245845,0.50206402,3447.7,3447.5,2.71294]
[1719878246047,2.2662,3448.1,3447.5,2.71294]
[1719878246255,0.17233318,3447.6,3447.5,2.71294]
[1719878246478,0.5,3448.0,3447.5,2.71294]
[1719878246683,0.17233318,3447.6,3447.5,2.71294]
[1719878246871,2.2662,3448.1,3447.5,2.71294]
[1719878247075,0.50205797,3448.0,3447.5,2.71294]
[1719878247285,0.50205797,3447.9,3447.5,2.71294]
[1719878247480,0.50205797,3447.8,3447.5,2.71294]
[1719878247789,0.50205797,3447.7,3447.5,2.71294]
[1719878247974,0.17233318,3447.7,3447.5,2.71294]
[1719878248176,0.5,3448.0,3447.5,2.71294]
[1719878248487,0.6743888,3447.9,3447.5,2.71294]
[1719878248702,0.50205562,3447.8,3447.5,2.71294]
[1719878249184,0.17233318,3447.7,3447.5,2.71294]
[1719878249388,5.16636,3448.1,3447.5,2.71294]
[1719878249585,1.17437551,3448.0,3447.6,2.90055]
[1719878249884,0.50205683,3447.9,3447.6,2.90055]
[1719878250071,0.17231868,3448.0,3447.6,2.90055]
[1719878250381,0.50201581,3447.9,3447.6,2.90055]
[1719878250581,10.38003,3448.3,3447.6,2.90055]
[1719878250793,0.17232448,3447.8,3447.6,2.90055]
[1719878250994,0.17232448,3447.7,3447.6,2.90055]
[1719878251684,10.38003,3448.3,3447.6,2.90055]
[1719878251864,0.17232448,3447.7,3447.6,2.90055]
[1719878252064,10.38003,3448.3,3447.6,2.90055]
[1719878252267,0.172368,3447.7,3447.6,2.90055]
[1719878252588,0.17235639,3447.7,3447.6,2.90055]
[1719878252887,10.38003,3448.3,3447.6,2.90055]
[1719878253056,0.17235639,3447.7,3447.6,2.90055]
[1719878253257,10.38003,3448.3,3447.6,2.90055]
[1719878253566,0.17235639,3447.7,3447.6,2.90055]
[1719878254046,10.38003,3448.3,3447.6,2.90055]
[1719878254252,0.5,3448.1,3447.6,2.90055]
[1719878254477,0.50203421,3448.0,3447.6,2.90055]
[1719878254794,0.6743906,3447.9,3447.6,2.90055]
[1719878255088,0.50203421,3447.8,3447.6,2.90055]
[1719878255389,0.17235639,3447.9,3447.6,2.90055]
[1719878255554,0.5,3448.1,3447.6,2.90055]
[1719878255752,0.50202401,3448.0,3447.6,2.90055]
[1719878255982,0.50202401,3447.9,3447.6,2.90055]